bitfinex-derivatives/quotes_ETHF0:USTF0_20260115
["timestamp","ask_amount","ask_price","bid_price","bid_amount"]
[1768506703815,0.86498893,3300.5,3298.9,0.14188883]
[1768506704115,0.15152,3300.6,3298.9,0.14188883]
[1768506704307,0.86487786,3300.5,3298.9,0.14188883]
[1768506704504,0.00374226,3300.8,3298.9,0.14188883]
[1768506704702,0.86486567,3300.7,3298.9,0.14188883]
[1768506705015,0.00374226,3300.8,3299.0,0.14188883]
[1768506706106,0.00374226,3300.8,3299.2,0.14188883]
[1768506708320,0.003,3301.7,3299.7,0.14188883]
[1768506708615,0.003,3301.7,3299.9,0.14188883]
[1768506709011,0.15146,3301.9,3299.9,0.14188883]
[1768506709214,0.8633262,3301.8,3300.0,0.14188883]
[1768506709414,0.00213875,3301.9,3300.2,0.14188883]
[1768506709717,0.00213875,3301.9,3300.2,0.14470033]
[1768506717625,0.15359875,3301.9,3300.2,0.14470033]
[1768506718826,0.15143,3302.5,3300.5,0.13870761]
[1768506719029,0.15143,3302.5,3300.7,0.13870761]
[1768506719320,0.15143,3302.5,3300.9,0.13870761]
[1768506719525,0.15143,3302.5,3301.0,0.14170761]
[1768506719723,0.15361233,3302.5,3301.0,0.14170761]
[1768506719928,0.15144,3302.4,3300.5,3.16970761]
[1768506720124,0.15144,3302.4,3300.6,0.14170761]
[1768506720319,0.15146,3302.0,3300.7,0.003]
[1768506721329,0.00218233,3302.5,3300.7,0.14170761]
[1768506723833,0.00218233,3302.5,3300.9,0.13870761]
[1768506724034,0.00218233,3302.5,3300.7,0.003]
[1768506724035,0.15137,3303.9,3301.7,0.13870761]
[1768506724333,0.14370385,3304.9,3302.0,0.13870761]
[1768506724525,0.14370385,3304.7,3302.2,0.13870761]
[1768506724720,0.23703353,3305.0,3301.9,0.15146]
[1768506724721,0.14370385,3304.3,3302.3,0.003]
[1768506724930,0.14370385,3304.3,3302.4,0.003]
[1768506724931,0.14370385,3304.1,3302.4,0.003]
[1768506725129,0.15138,3303.8,3302.5,0.003]
[1768506726031,0.15139,3303.4,3302.6,0.003]
[1768506726334,0.15139,3303.4,3302.7,0.003]
[1768506726632,0.14670385,3303.8,3302.5,0.003]
[1768506726832,0.85929692,3303.7,3302.5,0.003]
[1768506727034,0.14670385,3303.8,3302.5,0.003]
[1768506727233,6.85929935,3303.7,3302.5,0.00667962]
[1768506727535,0.15138,3303.8,3302.5,0.00667962]
[1768506727927,0.00537522,3304.3,3302.5,0.00367962]
[1768506728127,0.15139,3303.5,3302.5,0.00367962]
[1768506728339,0.15139,3303.5,3302.6,0.003]
[1768506729028,0.14670385,3303.9,3302.7,0.003]
[1768506729337,0.1514,3303.3,3302.5,0.00367962]
[1768506729639,0.1514,3303.3,3302.7,0.003]
[1768506730737,0.15141,3303.2,3302.5,9.62e-06]
[1768506730936,0.003,3303.5,3301.6,0.13870761]
[1768506731134,0.003,3303.5,3300.5,2.1521642]
[1768506731135,0.15143,3302.7,3301.7,0.003]
[1768506731835,0.15143,3302.7,3301.7,0.00645787]
[1768506732139,0.15143,3302.6,3301.8,0.003]
[1768506732434,0.15143,3302.6,3301.9,0.003]
[1768506732732,0.15143,3302.6,3301.7,0.00345787]
[1768506732931,0.15145,3302.1,3300.5,3.16870761]
[1768506733127,0.15145,3302.1,3300.6,0.14170761]
[1768506733935,0.15145,3302.1,3300.6,0.14096993]
[1768506734241,0.15145,3302.1,3300.7,0.14170761]
[1768506734835,0.15146,3302.0,3300.7,0.13870761]
[1768506735037,0.15146,3302.0,3300.8,0.003]
[1768506736843,0.15146,3301.9,3300.8,0.003]
[1768506737044,0.00271095,3301.9,3300.6,0.00226232]
[1768506737335,0.86229884,3301.8,3300.7,0.003]
[1768506737537,0.00271095,3301.9,3300.7,0.003]
[1768506737742,0.86232594,3301.8,3300.7,0.003]
[1768506737938,0.00271095,3301.9,3300.7,0.003]
[1768506738146,0.86232594,3301.8,3300.7,0.003]
[1768506738346,0.00271095,3301.9,3300.7,0.003]
[1768506738641,0.15148,3301.6,3300.7,0.003]
[1768506739043,0.15148,3301.6,3300.6,0.00226232]
[1768506739239,0.15148,3301.6,3300.7,0.003]
[1768506739640,0.15148,3301.5,3300.7,0.003]
[1768506739842,0.15149,3301.3,3299.7,0.13870761]
[1768506740039,0.15149,3301.3,3299.8,0.003]
[1768506740239,0.15149,3301.2,3299.8,0.003]
[1768506740444,0.15149,3301.2,3299.7,0.13870761]
[1768506740643,0.15151,3300.9,3299.4,0.13870761]
[1768506740940,0.15151,3300.9,3299.5,0.003]
[1768506741343,0.15151,3300.9,3299.5,0.14709573]
[1768506741640,0.15148,3301.6,3299.5,0.14709573]
[1768506741940,0.86532268,3301.5,3299.5,0.14709573]
[1768506742133,0.15149,3301.2,3299.6,0.003]
[1768506742449,0.15149,3301.2,3299.6,0.14709573]
[1768506743836,0.1515,3301.0,3299.6,0.14409573]
[1768506744146,0.1515,3301.0,3299.7,0.003]
[1768506745542,0.15151,3300.8,3299.4,0.00238611]
[1768506745744,0.15451,3300.8,3299.5,0.003]
[1768506745944,0.15152,3300.6,3299.5,0.003]
[1768506746543,0.15152,3300.6,3299.4,0.00238611]
[1768506746847,0.15153,3300.5,3299.5,0.003]
[1768506748341,0.15153,3300.5,3299.6,0.003]
[1768506748736,0.003,3300.8,3299.4,0.00238611]
[1768506748737,0.15153,3300.4,3299.5,0.003]
[1768506749954,0.15153,3300.4,3298.6,0.13049405]
[1768506750249,0.15153,3300.4,3299.0,0.13049405]
[1768506750950,0.15153,3300.4,3299.0,0.13325389]
[1768506751244,0.15154,3300.2,3299.0,0.13325389]
[1768506753049,0.15155,3300.1,3299.0,0.13325389]
[1768506753351,0.15156,3299.7,3299.0,0.00575984]
[1768506753646,0.15158,3299.3,3298.5,0.003]
[1768506754041,0.003,3299.7,3298.5,0.003]
[1768506754336,0.15456,3299.7,3298.5,0.003]
[1768506754541,0.15684329,3299.7,3298.5,0.00609726]
[1768506754939,0.15157,3299.6,3298.5,0.00609726]
[1768506755250,0.15157,3299.6,3298.5,0.00309726]
[1768506755454,0.15157,3299.6,3298.6,0.003]
[1768506755648,0.15158,3299.3,3298.5,0.00309726]
[1768506755846,0.15158,3299.3,3298.6,0.003]
[1768506757141,0.15158,3299.3,3298.4,0.003]
[1768506757344,0.15158,3299.3,3298.5,0.003]
[1768506758152,0.15158,3299.3,3298.5,0.00551108]
[1768506759037,0.15159,3299.1,3298.2,0.003]
[1768506759442,0.1516,3299.0,3298.2,0.003]
[1768506760048,0.1516,3299.0,3298.2,0.00662153]
[1768506760246,0.003,3299.2,3297.4,0.13049405]
[1768506760451,0.003,3299.2,3297.5,0.003]
[1768506761252,0.003,3299.2,3297.5,0.00691184]
[1768506761458,0.003,3299.2,3297.6,0.13049405]
[1768506761755,0.1516,3298.8,3297.6,0.13049405]
[1768506763241,0.1516,3298.8,3297.5,0.00691184]
[1768506764058,0.1516,3298.8,3297.6,0.003]
[1768506764252,0.003,3298.9,3297.6,0.003]
[1768506764457,0.003,3298.9,3297.5,0.00391184]
[1768506764458,0.15163,3298.2,3297.5,0.00391184]
[1768506764752,0.15164,3298.1,3297.3,0.003]
[1768506764964,0.15164,3298.1,3297.2,0.003]
[1768506765858,0.15164,3298.1,3297.2,0.00663201]
[1768506766248,0.003,3298.4,3297.2,0.00663201]
[1768506766453,0.15161,3298.7,3297.2,0.00663201]
[1768506766652,0.15461,3298.7,3297.2,0.00663201]
[1768506767358,0.15161,3298.7,3297.2,0.13712606]
[1768506768057,0.003,3299.0,3297.2,0.13712606]
[1768506768257,0.003,3299.2,3297.2,0.13712606]
[1768506768454,0.86078266,3299.1,3297.2,0.13712606]
[1768506768654,0.003,3299.2,3297.2,0.13712606]
[1768506768958,0.86078251,3299.1,3297.2,0.13712606]
[1768506769159,0.003,3299.2,3297.2,0.13712606]
[1768506769357,0.86107345,3299.1,3297.2,0.13712606]
[1768506769556,0.003,3299.2,3297.2,0.13712606]
[1768506769760,0.86107266,3299.1,3297.2,0.13712606]
[1768506769962,0.003,3299.2,3297.2,0.13712606]
[1768506770262,0.86107296,3299.1,3297.2,0.13712606]
[1768506770454,0.003,3299.2,3297.2,0.13712606]
[1768506770661,0.15159,3299.0,3297.2,0.13712606]
[1768506771360,0.15384329,3299.7,3297.6,0.14029512]
[1768506771568,0.15384329,3299.7,3297.8,0.14029512]
[1768506773266,0.86198561,3299.6,3297.8,0.14029512]
[1768506773565,0.15384329,3299.7,3297.8,0.14029512]
[1768506773860,1.0135554,3299.6,3297.8,0.14029512]
[1768506774066,0.15157,3299.5,3297.9,0.003]
[1768506774667,0.15158,3299.3,3298.0,0.003]
[1768506774967,0.15458,3299.3,3298.0,0.003]
[1768506776370,0.15158,3299.3,3298.0,0.003]
[1768506778469,0.15158,3299.3,3297.8,0.14029512]
[1768506778672,0.15158,3299.3,3297.9,0.003]
[1768506778970,0.15158,3299.3,3297.9,0.14329512]
[1768506779270,0.15458,3299.3,3297.9,0.14329512]
[1768506780468,0.86478167,3299.2,3297.9,0.14329512]
[1768506780771,0.15458,3299.3,3297.9,0.14329512]
[1768506780977,0.86478175,3299.2,3297.9,0.14329512]
[1768506781168,0.15458,3299.3,3297.9,0.14329512]
[1768506781368,0.86511527,3299.2,3297.9,0.14329512]
[1768506781576,0.15458,3299.3,3297.9,0.14329512]
[1768506781774,0.86518265,3299.2,3297.9,0.14329512]
[1768506781975,0.00228329,3299.7,3297.9,0.14329512]
[1768506782177,0.86517765,3299.6,3297.9,0.14329512]
[1768506782474,0.86517765,3299.5,3297.9,0.14329512]
[1768506782664,0.86517765,3299.4,3297.9,0.14029512]
[1768506782865,0.15158,3299.2,3298.0,0.003]
[1768506783065,0.15158,3299.2,3298.1,0.003]
[1768506783365,0.00228329,3299.7,3298.1,0.14329512]
[1768506783566,0.86601588,3299.6,3298.1,0.14329512]
[1768506783869,0.86601588,3299.5,3298.1,0.14329512]
[1768506784172,0.86601588,3299.4,3298.1,0.14329512]
[1768506784374,0.86601588,3299.3,3298.1,0.14329512]
[1768506784575,0.86601588,3299.2,3298.1,0.14329512]
[1768506784767,0.15157,3299.5,3298.1,0.14329512]
[1768506784963,0.86602448,3299.4,3298.1,0.14329512]
[1768506785163,0.86602448,3299.3,3298.1,0.14329512]
[1768506785375,0.15157,3299.5,3298.1,0.14329512]
[1768506785967,0.86600112,3299.4,3298.1,0.14329512]
[1768506786274,0.15157,3299.5,3298.1,0.14329512]
[1768506787871,0.86893029,3299.4,3297.7,0.14029512]
[1768506788176,0.15161,3298.7,3297.8,0.003]
[1768506788560,1.01773067,3298.6,3297.3,3.033]
[1768506788768,0.15161,3298.6,3297.4,0.003]
[1768506789468,0.86606874,3298.5,3297.2,0.00363201]
[1768506789669,0.86607777,3298.4,3297.2,0.00363201]
[1768506789875,0.86607777,3298.3,3297.3,0.003]
[1768506790176,0.86607777,3298.2,3297.3,0.003]
[1768506791776,0.86907777,3298.2,3297.3,0.003]
[1768506791976,0.003,3298.2,3297.3,0.003]
[1768506792181,0.8657799,3298.1,3297.3,0.003]
[1768506792377,0.15463,3298.2,3297.2,0.00663201]
[1768506792578,1.01720464,3298.1,3297.2,0.00663201]
[1768506792782,0.15164,3298.1,3297.2,0.00663201]
[1768506795185,0.003,3298.2,3296.3,3.033]
[1768506795186,0.15165,3297.9,3296.3,3.033]
[1768506795381,0.003,3297.9,3296.3,3.033]
[1768506795587,0.003,3297.9,3296.4,0.003]
[1768506796273,0.003,3297.9,3296.4,0.14711709]
[1768506796687,0.15166,3297.7,3296.4,0.14711709]
[1768506796880,0.15163,3298.3,3296.4,0.14711709]
[1768506797088,1.0196129,3298.2,3296.4,0.14711709]
[1768506797290,0.8649829,3298.1,3296.4,0.14711709]
[1768506797584,0.15463,3298.2,3296.4,0.14711709]
[1768506797783,0.86481739,3298.1,3296.4,0.14711709]
[1768506797987,0.15164,3298.1,3296.4,0.14711709]
[1768506798285,0.15164,3298.0,3296.4,0.14711709]
[1768506798588,0.15165,3297.7,3296.5,0.003]
[1768506805988,0.003,3297.6,3296.5,0.003]
[1768506806181,0.003,3297.5,3296.5,0.003]
[1768506806892,0.15166,3297.6,3296.5,0.003]
[1768506807081,0.15166,3297.6,3296.5,0.13985195]
[1768506809790,0.15166,3297.5,3296.5,0.003]
[1768506810093,0.003,3297.9,3296.5,0.003]
[1768506810094,0.15167,3297.4,3296.5,0.003]
[1768506812097,0.15164,3298.0,3296.5,0.003]
[1768506812294,0.15164,3298.0,3296.5,0.13985195]
[1768506812789,0.15161,3298.6,3296.5,0.13985195]
[1768506812991,5.033,3298.9,3296.5,0.13985195]
[1768506812992,1.01858033,3298.5,3296.5,0.13985195]
[1768506813296,0.15462,3298.5,3296.5,0.13985195]
[1768506813696,0.15162,3298.4,3296.5,0.13985195]
[1768506814099,0.15162,3298.4,3296.6,0.003]
[1768506815203,0.15162,3298.4,3296.6,0.00569507]
[1768506816202,0.15162,3298.4,3296.7,0.13685195]
[1768506818405,0.13695372,3298.4,3296.6,0.00569507]
[1768506818620,0.15164,3298.1,3296.6,0.00569507]
[1768506819119,0.15164,3298.1,3296.6,0.14254702]
[1768506819311,0.15161,3298.7,3296.6,0.14254702]
[1768506819617,0.86703351,3298.6,3296.7,0.13685195]
[1768506819918,0.15161,3298.7,3297.0,0.13685195]
[1768506820108,0.15161,3298.7,3297.2,0.13685195]
[1768506825812,0.15161,3298.7,3297.1,0.003]
[1768506828723,0.15461,3298.7,3297.1,0.13985195]
[1768506830724,0.29156372,3298.7,3297.1,0.13985195]
[1768506831121,0.15162,3298.6,3297.1,0.13985195]
[1768506831313,0.29753059,3298.6,3297.1,0.003]
[1768506833424,0.003,3298.8,3297.2,0.14373344]
[1768506833913,0.15161,3298.7,3297.2,0.14373344]
[1768506834117,0.29752059,3298.7,3297.1,0.003]
[1768506836615,0.14591059,3298.5,3296.6,0.00269507]
[1768506836821,0.14591059,3298.3,3296.7,0.003]
[1768506837630,0.15163,3298.2,3296.7,0.003]
[1768506839629,0.29754059,3298.2,3296.7,0.003]
[1768506840231,0.15163,3298.2,3296.7,0.14673344]
[1768506841530,0.29754059,3298.2,3296.7,0.003]
[1768506842128,0.14591059,3298.7,3296.7,0.14673344]
[1768506842326,0.15161,3298.8,3297.0,0.14373344]
[1768506842628,0.15157,3299.5,3297.2,0.14373344]
[1768506842825,0.15157,3299.5,3297.4,0.14373344]
[1768506843021,0.14591059,3299.3,3297.6,0.14373344]
[1768506843223,0.14591059,3298.8,3297.0,0.14373344]
[1768506843429,0.14591059,3298.7,3297.1,0.003]
[1768506844728,0.29753059,3298.5,3297.1,0.003]
[1768506844930,0.30053059,3298.5,3297.1,0.003]
[1768506845417,0.29753059,3298.4,3297.1,0.003]
[1768506845622,0.14591059,3298.3,3297.1,0.003]
[1768506845833,0.14891059,3298.2,3297.1,0.003]
[1768506846731,0.30054059,3298.2,3297.1,0.003]
[1768506846929,0.14591059,3298.1,3297.1,0.003]
[1768506847520,0.15163,3298.2,3297.1,0.003]
[1768506848227,0.14591059,3298.6,3297.1,0.003]
[1768506848421,0.14891059,3298.6,3297.1,0.003]
[1768506848734,0.14591059,3298.6,3297.1,0.003]
[1768506849632,0.003,3298.7,3297.1,0.14673344]
[1768506849837,0.003,3298.8,3297.1,0.14673344]
[1768506851032,0.1546,3298.8,3297.1,0.14673344]
[1768506851334,0.14591059,3298.6,3297.1,0.003]
[1768506851937,0.29752059,3298.6,3297.1,0.003]
[1768506852436,0.29753059,3298.5,3297.1,0.003]
[1768506854336,0.86283495,3298.4,3297.1,0.003]
[1768506854539,0.29753059,3298.5,3297.1,0.003]
[1768506854839,0.86283509,3298.4,3297.1,0.003]
[1768506855036,0.29753059,3298.5,3297.1,0.003]
[1768506855339,5.03528329,3299.7,3297.1,0.003]
[1768506855340,0.14591059,3298.3,3297.1,0.003]
[1768506856335,0.14591059,3298.1,3297.1,0.003]
[1768506858638,0.14891059,3298.1,3297.1,0.003]
[1768506863045,0.8629085,3298.0,3297.1,0.003]
[1768506863238,0.14891059,3298.1,3297.1,0.003]
[1768506863437,0.86286444,3298.0,3297.1,0.003]
[1768506863642,0.14891059,3298.1,3297.1,0.003]
[1768506863935,0.86286454,3298.0,3297.1,0.003]
[1768506864133,0.14891059,3298.1,3296.9,0.003]
[1768506864333,0.13952452,3297.9,3296.9,0.003]
[1768506865546,0.003,3297.8,3296.9,0.003]
[1768506871442,0.13882894,3297.8,3296.9,0.003]
[1768506872847,1.37895618,3297.2,3296.1,0.003]
[1768506873034,0.15468,3297.2,3296.1,0.003]
[1768506873845,0.00611681,3297.2,3296.2,1.22727618]
[1768506874037,0.00311681,3297.2,3296.5,1.22727618]
[1768506874237,0.15465,3297.8,3297.1,1.22727618]
[1768506874947,0.13582894,3298.4,3297.1,1.22727618]
[1768506875145,0.003,3298.2,3297.1,1.22727618]
[1768506875448,0.86056542,3298.1,3297.1,1.22727618]
[1768506877755,0.86356542,3298.1,3297.1,1.22727618]
[1768506877937,0.86056542,3298.0,3297.1,1.22727618]
[1768506878950,0.003,3298.1,3297.1,1.22727618]
[1768506879251,0.86054142,3298.0,3297.1,1.22727618]
[1768506879445,0.003,3298.1,3297.1,1.22727618]
[1768506879652,0.86058536,3298.0,3297.2,0.003]
[1768506879954,0.003,3298.1,3297.2,0.003]
[1768506880252,0.86058538,3298.0,3297.2,0.003]
[1768506880443,0.15163,3298.2,3297.2,0.003]
[1768506880647,0.86063473,3298.1,3297.2,0.003]
[1768506880846,0.15163,3298.2,3297.2,0.003]
[1768506881050,0.86063253,3298.1,3297.3,1.22727618]
[1768506881261,0.15463,3298.2,3297.3,1.22727618]
[1768506881556,0.8607075,3298.1,3297.2,0.003]
[1768506881756,0.15163,3298.2,3297.2,0.003]
[1768506881952,0.86070851,3298.1,3297.2,0.003]
[1768506882153,0.15163,3298.2,3297.2,0.003]
[1768506882351,0.86079933,3298.1,3297.2,0.003]
[1768506882547,0.15163,3298.2,3297.2,0.003]
[1768506882755,1.22727618,3297.9,3297.2,0.003]
[1768506883052,0.86086558,3297.8,3296.8,0.003]
[1768506883261,1.36610512,3297.9,3296.8,0.003]
[1768506883459,0.86093702,3297.8,3296.8,0.003]
[1768506883653,0.15165,3297.8,3296.8,0.003]
[1768506884750,0.28748894,3297.7,3296.3,1.22727618]
[1768506884957,0.28748894,3297.7,3296.4,0.003]
[1768506884958,1.22727618,3297.5,3296.4,0.003]
[1768506885158,0.003,3297.6,3296.4,0.003]
[1768506885461,0.86108629,3297.5,3296.4,0.003]
[1768506885660,0.003,3297.6,3296.4,0.003]
[1768506885860,0.8610872,3297.5,3296.4,0.003]
[1768506886065,0.29048894,3297.6,3296.4,0.003]
[1768506886251,0.86100501,3297.5,3296.4,0.003]
[1768506886451,0.15166,3297.5,3296.4,0.003]
[1768506886653,0.13582894,3297.2,3295.7,3.034]
[1768506886961,0.13882894,3297.2,3296.2,0.003]
[1768506887656,0.29050894,3297.2,3295.5,0.13491141]
[1768506887858,0.29050894,3297.2,3295.8,1.23027618]
[1768506888856,1.22727618,3297.0,3295.8,0.003]
[1768506889057,0.003,3296.9,3295.8,0.003]
[1768506891474,0.1547,3296.8,3295.8,1.23027618]
[1768506891667,0.1547,3296.8,3296.0,1.22727618]
[1768506891876,0.15167,3297.5,3296.3,1.22727618]
[1768506892167,0.86315795,3297.4,3296.6,1.22727618]
[1768506892355,0.003,3297.4,3296.6,1.2301816]
[1768506893068,0.15467,3297.4,3296.6,0.00290542]
[1768506893669,0.15167,3297.3,3296.3,0.003]
[1768506893870,0.15169,3297.0,3295.7,1.22727618]
[1768506894068,0.15469,3297.0,3295.8,0.003]
[1768506894767,0.15469,3297.0,3295.8,0.00620121]
[1768506897174,0.15469,3297.0,3296.0,1.22727618]
[1768506897671,0.15169,3297.0,3296.0,1.22727618]
[1768506897873,0.15169,3297.0,3295.8,0.00620121]
[1768506897874,0.15169,3297.0,3295.9,1.22727618]
[1768506899377,0.15169,3297.0,3296.2,1.22727618]
[1768506899674,0.15169,3297.0,3296.2,1.23027618]
[1768506900674,0.15169,3297.0,3296.2,0.003]
[1768506902471,1.22727618,3296.7,3295.8,0.00320121]
[1768506902676,1.23027618,3296.7,3295.8,0.00320121]
[1768506902977,1.38197618,3296.7,3295.8,0.00320121]
[1768506903877,1.37473709,3296.7,3295.8,0.00320121]
[1768506904072,0.14746091,3296.7,3295.8,0.00320121]
[1768506905274,0.15171,3296.5,3295.8,0.00320121]
[1768506905575,0.003,3296.4,3295.3,0.003]
[1768506906575,0.15472,3296.3,3295.3,0.00367983]
[1768506906881,0.29618091,3296.2,3295.2,0.003]
[1768506907679,0.29618091,3296.2,3295.2,0.00671307]
[1768506912678,0.1547,3296.8,3296.0,1.22727618]
[1768506912974,0.1517,3296.8,3295.7,1.23027618]
[1768506913579,0.003,3296.7,3295.7,1.23027618]
[1768506916582,0.1547,3296.8,3295.7,1.23027618]
[1768506916785,0.14446091,3297.6,3296.3,1.22727618]
[1768506916982,0.15167,3297.4,3296.3,1.22727618]
[1768506917287,0.85299394,3297.3,3296.3,1.22727618]
[1768506917481,0.15167,3297.4,3296.6,1.22727618]
[1768506917682,0.15167,3297.4,3296.6,1.23027618]
[1768506918184,0.15167,3297.4,3296.6,0.003]
[1768506925990,0.15164,3298.0,3296.7,1.22750625]
[1768506926309,0.003,3297.9,3296.7,1.22750625]
[1768506926893,0.003,3297.9,3296.6,0.14910811]
[1768506927289,0.15464,3297.9,3296.6,0.14910811]
[1768506929678,0.15164,3297.9,3296.6,0.14910811]
[1768506929877,0.003,3297.8,3296.6,0.14910811]
[1768506930688,0.15166,3297.6,3296.6,0.003]
[1768506930990,0.15466,3297.5,3296.6,0.003]
[1768506931187,0.003,3297.4,3296.6,0.003]
[1768506934191,0.13842139,3297.3,3295.7,0.14265689]
[1768506934380,0.13842139,3297.1,3295.3,0.14265689]
[1768506934697,0.99589245,3297.0,3295.4,0.003]
[1768506934896,0.14142139,3297.0,3295.4,0.003]
[1768506935394,0.15172,3296.4,3295.4,0.003]
[1768506935693,0.003,3296.3,3295.4,0.003]
[1768506936091,0.003,3296.2,3294.8,0.14265689]
[1768506936304,0.15472,3296.2,3294.4,0.14265689]
[1768506936598,0.15472,3296.2,3295.0,0.003]
[1768506937791,0.15173,3296.1,3294.4,0.14265689]
[1768506937999,0.15173,3296.1,3294.7,1.37016314]
[1768506938192,0.003,3296.0,3294.8,0.14265689]
[1768506938388,0.003,3296.2,3294.8,0.14265689]
[1768506938695,0.1517,3296.8,3295.1,1.37016314]
[1768506939003,0.003,3296.7,3295.2,0.14565689]
[1768506939291,0.003,3296.6,3295.2,0.14565689]
[1768506942500,0.003,3296.6,3295.2,0.003]
[1768506943093,0.14142139,3296.6,3295.2,0.003]
[1768506943394,0.15171,3296.4,3295.2,0.003]
[1768506944100,0.14142139,3296.6,3295.2,0.003]
[1768506944395,0.00336057,3296.8,3295.2,0.003]
[1768506944396,0.85756335,3296.5,3295.2,0.003]
[1768506944701,0.003,3296.4,3295.2,0.14565689]
[1768506945198,0.1517,3296.7,3295.2,0.14565689]
[1768506945393,0.003,3296.6,3295.2,0.14565689]
[1768506947804,0.1517,3296.7,3295.2,0.14565689]
[1768506950697,0.14178196,3296.8,3295.2,0.003]
[1768506950902,0.14434878,3296.5,3295.2,0.003]
[1768506952699,0.15172,3296.2,3295.2,0.003]
[1768506952899,0.15472,3296.2,3295.2,0.003]
[1768506954807,0.15172,3296.2,3295.1,0.00263706]
[1768506955102,0.15472,3296.2,3295.1,0.00263706]
[1768506960815,0.15506057,3296.8,3295.1,0.14363717]
[1768506961013,1.00910911,3296.7,3295.1,0.14363717]
[1768506961211,0.15171,3296.5,3295.1,0.14363717]
[1768506961414,0.15171,3296.5,3295.1,0.00263706]
[1768506961614,1.00946752,3296.4,3295.1,0.00263706]
[1768506961914,0.15172,3296.4,3295.1,0.00263706]
[1768506962104,0.14434878,3296.7,3295.1,0.00263706]
[1768506962413,0.14434878,3296.5,3295.1,0.00263706]
[1768506962613,1.00210315,3296.4,3295.1,0.00263706]
[1768506962809,0.85775437,3296.3,3295.1,0.00263706]
[1768506963714,0.15173,3296.1,3295.1,0.00263706]
[1768506963914,0.14434878,3296.4,3295.1,0.00263706]
[1768506964111,0.15174,3295.9,3294.9,0.003]
[1768506965215,0.15174,3295.9,3294.9,0.0060108]
[1768506965514,0.8588976,3295.8,3294.5,0.003]
[1768506965716,0.14434878,3296.2,3294.5,0.003]
[1768506965918,0.14434878,3296.0,3294.5,0.003]
[1768506966112,0.85885885,3295.9,3294.5,0.003]
[1768506966309,0.15175,3295.6,3294.5,0.003]
[1768506966506,0.15175,3295.6,3294.5,0.00580262]
[1768506966911,0.15176,3295.5,3294.5,0.00580262]
[1768506967410,0.15176,3295.5,3294.5,0.00280262]
[1768506967719,0.15177,3295.3,3293.8,0.003]
[1768506968014,0.15177,3295.2,3293.8,0.003]
[1768506968611,0.15175,3295.7,3293.8,0.14400011]
[1768506968815,0.8580927,3295.6,3293.8,0.29818022]
[1768506969015,0.15175,3295.7,3293.9,0.14100011]
[1768506970515,0.15175,3295.7,3294.0,0.14100011]
[1768506970917,0.14434878,3296.5,3294.1,0.14100011]
[1768506971107,2.16473654,3296.8,3294.1,0.14100011]
[1768506971108,0.14434878,3296.3,3294.1,0.14100011]
[1768506971304,1.00224137,3296.2,3294.1,0.14100011]
[1768506971506,0.15174,3295.9,3294.1,0.14100011]
[1768506973815,0.15171,3296.6,3294.3,0.14100011]
[1768506974014,0.15172,3296.3,3294.5,0.14100011]
[1768506974220,1.0095239,3296.2,3294.5,0.14100011]
[1768506974419,0.8578039,3296.1,3294.5,0.14100011]
[1768506975715,0.15172,3296.2,3294.5,0.14100011]
[1768506976621,0.15173,3296.1,3294.5,0.14100011]
[1768506976815,0.15173,3296.1,3294.6,0.003]
[1768506977015,0.15173,3296.1,3294.6,0.14400011]
[1768506981335,0.15173,3296.1,3294.9,1.22861401]
[1768506981628,0.28546226,3296.7,3295.3,1.22861401]
[1768506981834,0.85872647,3296.6,3295.6,1.22861401]
[1768506982132,0.85872647,3296.5,3295.8,1.22861401]
[1768506982327,0.1517,3296.7,3295.8,1.22861401]
[1768506982524,0.85851175,3296.6,3295.8,1.22861401]
[1768506982821,0.1517,3296.7,3295.8,1.22861401]
[1768506983025,0.85850954,3296.6,3295.4,0.003]
[1768506983225,0.1517,3296.7,3295.4,0.003]
[1768506983423,0.85839821,3296.6,3295.4,0.003]
[1768506983731,0.1517,3296.7,3295.4,0.003]
[1768506983936,0.85839571,3296.6,3295.4,0.003]
[1768506984138,0.1517,3296.7,3295.4,0.003]
[1768506984438,0.85839556,3296.6,3295.4,0.003]
[1768506984734,0.1517,3296.7,3295.4,0.003]
[1768506984937,0.85828184,3296.6,3295.4,0.003]
[1768506985121,0.1517,3296.7,3295.4,0.003]
[1768506985325,0.85828222,3296.6,3295.4,0.003]
[1768506985536,0.1517,3296.7,3295.4,0.003]
[1768506985835,0.85817907,3296.6,3295.4,0.003]
[1768506986032,0.1517,3296.7,3295.4,0.003]
[1768506986340,0.85795945,3296.6,3295.4,0.003]
[1768506986548,0.1517,3296.7,3295.4,0.003]
[1768506986744,0.85786182,3296.6,3295.4,0.003]
[1768506986948,0.1517,3296.7,3295.4,0.003]
[1768506987147,0.85786221,3296.6,3295.4,0.003]
[1768506987453,0.1517,3296.7,3295.4,0.003]
[1768506988043,0.85777167,3296.6,3295.4,0.003]
[1768506988244,0.1517,3296.7,3295.4,0.003]
[1768506990650,0.15171,3296.6,3295.4,0.003]
[1768506990849,0.29472744,3296.5,3295.4,0.003]
[1768506992747,0.15171,3296.5,3295.4,0.003]
[1768506994561,0.14301744,3296.4,3294.6,1.76873459]
[1768506995054,0.29472744,3296.4,3294.6,0.14386446]
[1768506995253,1.00062527,3296.3,3294.6,0.14386446]
[1768506995461,0.85760783,3296.2,3294.6,0.14386446]
[1768506996561,1.00932783,3296.2,3294.6,0.14386446]
[1768506996761,0.29474744,3296.1,3294.5,3.036]
[1768506996954,0.14301744,3295.9,3294.5,3.036]
[1768506998350,0.29475744,3295.9,3294.5,3.036]
[1768506999762,0.29475744,3295.9,3294.1,0.14386446]
[1768507001662,0.85835122,3295.8,3294.1,0.14386446]
[1768507001863,0.14301744,3295.8,3294.1,0.14386446]
[1768507002461,0.15175,3295.6,3294.1,0.14386446]